[Event "8. Arber-Schachopen 2019"]
[Site "Bodenmais"]
[Date "2019.07.29"]
[Round "3.15"]
[White "Pohl-Kuemmel, Jens-Uwe"]
[Black "Liebold, Aaron"]
[Result "0-1"]
[ECO "D33"]
[WhiteElo "2288"]
[BlackElo "1944"]
[Annotator "NA"]
[PlyCount "59"]
[EventDate "2019.07.27"]
[EventCountry "GER"]
[SourceTitle "playchess.com"]
[Source "ChessBase"]
[SourceQuality "1"]
[TimeControl "40/5400+30:1800+30"]

1. Nf3 {[%emt 0:00:00]} Nf6 {[%emt 0:00:00]} 2. c4 {[%emt 0:00:00]} e6 {[%emt 0:00:43]} 3. Nc3 {[%emt 0:00:14]} c5 {[%emt 0:00:22]} 4. g3 {[%emt 0:01:06]} d5 {[%emt 0:01:25]} 5. cxd5 {[%emt 0:00:39]} exd5 {[%emt 0:00:13]} 6. d4 {[%emt 0:00:11]} Nc6 {[%emt 0:00:18]} 7. Bg2 {[%emt 0:00:07]} Be6 {[%emt 0:01:28]} 8. O-O {[%emt 0:00:30]} Be7 {[%emt 0:01:07]} 9. b3 {[%emt 0:05:32]} O-O {[%emt 0:02:24]} 10. Bb2 {[%emt 0:00:15]} Rc8 {[%emt 0:01:50]} 11. Rc1 {[%emt 0:06:51]} b6 {[%emt 0:01:46]} 12. e3 {[%emt 0:07:15]} Qc7 {[%emt 0:12:37]} 13. Ng5 {[%emt 0:13:16]} Rfd8 {[%emt 0:06:14]} 14. Nxe6 {[%emt 0:10:28]} fxe6 {[%emt 0:00:06]} 15. Ne2 {[%emt 0:00:11]} e5 {[%emt 0:05:35]} 16. dxe5 {[%emt 0:01:03]} Nxe5 {[%emt 0:00:48]} 17. Nf4 {[%emt 0:00:18]} Qd6 {[%emt 0:02:19]} 18. h4 {[%emt 0:06:49]} b5 {[%emt 0:11:43]} 19. Qe2 {[%emt 0:04:08]} a6 {[%emt 0:08:47]} 20. Rfd1 {[%emt 0:00:14]} Nc6 {[%emt 0:03:26]} 21. Bxf6 {[%emt 0:05:27]} Qxf6 {[%emt 0:01:59]} 22. Nxd5 {[%emt 0:00:16]} Qe5 {[%emt 0:00:43]} 23. Nxe7+ {[%emt 0:02:18]} Nxe7 {[%emt 0:01:25]} 24. Bb7 {[%emt 0:04:55]} Rxd1+ {[%emt 0:01:14]} 25. Qxd1 {[%emt 0:01:25]} Rb8 {[%emt 0:00:40]} 26. Bg2 {[%emt 0:05:01]} Qc7 {[%emt 0:04:07]} 27. Qc2 {[%emt 0:02:02]} Rc8 {[%emt 0:00:21]} 28. Bh3 {[%emt 0:00:51]} Rd8 {[%emt 0:00:19]} 29. Bg4 {[%emt 0:00:53]} Ng6 {[%emt 0:03:07]} 30. Qxc5 {[%emt 0:01:40]} 0-1

[Event "8. Arber-Schachopen 2019"]
[Site "Bodenmais"]
[Date "2019.07.29"]
[Round "3.16"]
[White "Krauss, Andreas"]
[Black "Schmid, Wolfgang"]
[Result "1/2-1/2"]
[ECO "B01"]
[WhiteElo "1996"]
[BlackElo "2162"]
[Annotator "NA"]
[PlyCount "38"]
[EventDate "2019.07.27"]
[EventCountry "GER"]
[SourceTitle "playchess.com"]
[Source "ChessBase"]
[SourceQuality "1"]
[TimeControl "40/5400+30:1800+30"]

1. e4 {[%emt 0:01:50]} d5 {[%emt 0:01:01]} 2. exd5 {[%emt 0:00:11]} Qxd5 {[%emt 0:00:02]} 3. Nf3 {[%emt 0:00:38]} Nf6 {[%emt 0:00:20]} 4. d4 {[%emt 0:06:24]} c6 {[%emt 0:02:23]} 5. Be2 {[%emt 0:02:54]} Bg4 {[%emt 0:01:52]} 6. h3 {[%emt 0:03:03]} Bh5 {[%emt 0:01:32]} 7. O-O {[%emt 0:01:20]} e6 {[%emt 0:00:46]} 8. Be3 {[%emt 0:03:44]} Be7 {[%emt 0:01:29]} 9. c4 {[%emt 0:02:15]} Qd8 {[%emt 0:01:06]} 10. Qb3 {[%emt 0:04:02]} Qc7 {[%emt 0:07:28]} 11. Nc3 {[%emt 0:00:46]} Nbd7 {[%emt 0:00:43]} 12. Rac1 {[%emt 0:01:56]} O-O {[%emt 0:20:41]} 13. Rfd1 {[%emt 0:01:07]} Rfe8 {[%emt 0:09:05]} 14. Rd2 {[%emt 0:07:45]} Bg6 {[%emt 0:02:35]} 15. Qd1 {[%emt 0:02:07]} Bb4 {[%emt 0:08:06]} 16. Bd3 {[%emt 0:05:18]} Qa5 {[%emt 0:04:02]} 17. a3 {[%emt 0:04:54]} Bxc3 {[%emt 0:00:20]} 18. Rxc3 {[%emt 0:00:29]} Ne4 {[%emt 0:05:05]} 19. Bb1 Qe5 1/2-1/2

[Event "8. Arber-Schachopen 2019"]
[Site "Bodenmais"]
[Date "2019.07.29"]
[Round "3.17"]
[White "Gruettner, Ralf"]
[Black "Kneutgen, Alexander"]
[Result "1/2-1/2"]
[ECO "C03"]
[WhiteElo "2118"]
[BlackElo "1920"]
[Annotator "NA"]
[PlyCount "64"]
[EventDate "2019.07.27"]
[EventCountry "GER"]
[SourceTitle "playchess.com"]
[Source "ChessBase"]
[SourceQuality "1"]
[TimeControl "40/5400+30:1800+30"]

1. e4 {[%emt 0:00:42]} e6 {[%emt 0:00:00]} 2. d4 {[%emt 0:00:05]} d5 {[%emt 0:00:00]} 3. Nd2 {[%emt 0:00:13]} h6 {[%emt 0:00:45]} 4. c3 {[%emt 0:01:05]} Nf6 {[%emt 0:02:13]} 5. e5 {[%emt 0:00:12]} Nfd7 {[%emt 0:00:10]} 6. Bd3 {[%emt 0:00:17]} c5 {[%emt 0:00:32]} 7. Ne2 {[%emt 0:01:06]} Nc6 {[%emt 0:01:13]} 8. O-O {[%emt 0:04:25]} Qb6 {[%emt 0:05:06]} 9. Nf3 {[%emt 0:04:49]} a5 {[%emt 0:03:55]} 10. b3 {[%emt 0:06:38]} a4 {[%emt 0:07:02]} 11. bxa4 {[%emt 0:01:46]} c4 {[%emt 0:04:11]} 12. Bc2 {[%emt 0:02:38]} Qa6 {[%emt 0:01:17]} 13. Ne1 {[%emt 0:19:57]} Nb6 {[%emt 0:03:47]} 14. f4 {[%emt 0:04:09]} g6 {[%emt 0:01:00]} 15. g4 {[%emt 0:06:54]} Nxa4 {[%emt 0:02:46]} 16. f5 {[%emt 0:01:44]} g5 {[%emt 0:02:58]} 17. Ng2 {[%emt 0:09:08]} b5 {[%emt 0:02:50]} 18. Ne3 {[%emt 0:10:38]} b4 {[%emt 0:12:22]} 19. fxe6 {[%emt 0:01:53]} Bxe6 {[%emt 0:00:23]} 20. Bd2 {[%emt 0:14:35]} Qa5 {[%emt 0:05:05]} 21. cxb4 {[%emt 0:02:09]} Bxb4 {[%emt 0:00:43]} 22. Bxb4 {[%emt 0:01:43]} Nxb4 {[%emt 0:00:36]} 23. Bxa4+ {[%emt 0:03:02]} Qxa4 {[%emt 0:00:13]} 24. a3 {[%emt 0:01:27]} Qxd1 {[%emt 0:02:40]} 25. Rfxd1 {[%emt 0:00:05]} Nd3 {[%emt 0:01:03]} 26. Nc3 {[%emt 0:00:25]} Nf4 {[%emt 0:00:40]} 27. Rdb1 {[%emt 0:00:52]} h5 {[%emt 0:02:19]} 28. Rb5 {[%emt 0:00:20]} hxg4 {[%emt 0:02:37]} 29. Nexd5 {[%emt 0:00:42]} Bxd5 {[%emt 0:04:08]} 30. Nxd5 {[%emt 0:00:01]} Nxd5 {[%emt 0:00:49]} 31. Rxd5 {[%emt 0:00:02]} Rh3 {[%emt 0:01:46]} 32. Rc5 {[%emt 0:00:58]} Rhxa3 {[%emt 0:08:32]} 1/2-1/2

[Event "8. Arber-Schachopen 2019"]
[Site "Bodenmais"]
[Date "2019.07.29"]
[Round "3.18"]
[White "David, Sebastian"]
[Black "Zepke, Armin"]
[Result "1/2-1/2"]
[ECO "D18"]
[WhiteElo "1715"]
[BlackElo "2122"]
[Annotator "ChessBase"]
[PlyCount "82"]
[EventDate "2019.07.27"]
[EventCountry "GER"]
[SourceTitle "playchess.com"]
[Source "ChessBase"]
[SourceQuality "1"]
[TimeControl "40/5400+30:1800+30"]

1. d4 {[%emt 0:00:00]} d5 {[%emt 0:00:00]} 2. c4 {[%emt 0:00:00]} c6 {[%emt 0:00:00]} 3. Nc3 {[%emt 0:00:02]} Nf6 {[%emt 0:00:00]} 4. Nf3 {[%emt 0:01:15]} dxc4 {[%emt 0:00:06]} 5. a4 {[%emt 0:04:06]} Bf5 {[%emt 0:00:23]} 6. e3 {[%emt 0:00:58]} e6 {[%emt 0:01:42]} 7. Bxc4 {[%emt 0:01:32]} Bb4 {[%emt 0:00:38]} 8. Bd2 {[%emt 0:01:08]} Nbd7 {[%emt 0:01:37]} 9. Na2 {[%emt 0:05:14]} Bd6 {[%emt 0:05:41]} 10. O-O {[%emt 0:06:05]} O-O {[%emt 0:00:18]} 11. Bb4 {[%emt 0:02:24]} Qe7 {[%emt 0:04:05]} 12. Qb3 {[%emt 0:02:37]} a5 {[%emt 0:01:30]} 13. Bxd6 {[%emt 0:03:03]} Qxd6 {[%emt 0:00:05]} 14. Bd3 {[%emt 0:03:37]} Bxd3 {[%emt 0:28:17]} 15. Qxd3 {[%emt 0:00:18]} Nd5 {[%emt 0:02:17]} 16. Ng5 {[%emt 0:08:24]} f5 {[%emt 0:15:38]} 17. Qb3 {[%emt 0:08:06]} h6 {[%emt 0:09:31]} 18. Nf3 {[%emt 0:01:19]} Kh7 {[%emt 0:08:41]} 19. Nc1 {[%emt 0:06:04]} Nb4 {[%emt 0:02:08]} 20. Nd3 {[%emt 0:01:59]} Qd5 {[%emt 0:02:41]} 21. Qxd5 {[%emt 0:06:41]} Nxd5 {[%emt 0:01:12]} 22. Rfc1 {[%emt 0:02:04]} g5 {[%emt 0:03:43]} 23. Nc5 {[%emt 0:02:35]} Nxc5 {[%emt 0:00:57]} 24. Rxc5 {[%emt 0:00:16]} Rfd8 {[%emt 0:01:28]} 25. Ne5 {[%emt 0:01:44]} Nb4 {[%emt 0:02:18]} 26. g3 {[%emt 0:02:57]} Rd5 {[%emt 0:00:27]} 27. Rxd5 {[%emt 0:02:12]} exd5 {[%emt 0:01:29]} 28. Rc1 {[%emt 0:01:01]} Kg7 {[%emt 0:02:36]} 29. Kf1 {[%emt 0:00:29]} Kf6 {[%emt 0:01:27]} 30. Ke2 {[%emt 0:01:10]} Ke6 {[%emt 0:00:12]} 31. Nd3 {[%emt 0:07:06]} Kd6 {[%emt 0:00:43]} 32. Nc5 {[%emt 0:04:11]} b6 {[%emt 0:00:18]} 33. Nd3 {[%emt 0:00:49]} Nxd3 {[%emt 0:02:02]} 34. Kxd3 {[%emt 0:00:06]} h5 {[%emt 0:00:27]} 35. b3 {[%emt 0:00:42]} Rh8 {[%emt 0:00:51]} 36. h3 {[%emt 0:00:44]} Rg8 {[%emt 0:01:13]} 37. Rh1 {[%emt 0:02:27]} Rf8 {[%emt 0:01:07]} 38. h4 {[%emt 0:00:27]} g4 {[%emt 0:00:04]} 39. Rc1 {[%emt 0:00:31]} Rf7 {[%emt 0:00:36]} 40. Rc2 {[%emt 0:00:36]} Rf6 {[%emt 0:00:44]} 41. Rc1 {[%emt 0:31:54]} Rf7 {[%emt 0:02:28]} 1/2-1/2

[Event "8. Arber-Schachopen 2019"]
[Site "Bodenmais"]
[Date "2019.07.29"]
[Round "3.19"]
[White "Eggeling, Philipp"]
[Black "Medunova, Vera"]
[Result "1/2-1/2"]
[ECO "D78"]
[WhiteElo "1869"]
[BlackElo "2093"]
[Annotator "NA"]
[PlyCount "37"]
[EventDate "2019.07.27"]
[EventCountry "GER"]
[SourceTitle "playchess.com"]
[Source "ChessBase"]
[SourceQuality "1"]
[TimeControl "40/5400+30:1800+30"]

1. Nf3 {[%emt 0:00:00]} Nf6 {[%emt 0:00:00]} 2. g3 {[%emt 0:00:00]} d5 {[%emt 0:02:09]} 3. c4 {[%emt 0:00:06]} c6 {[%emt 0:01:42]} 4. d4 {[%emt 0:00:40]} g6 {[%emt 0:00:38]} 5. Bg2 {[%emt 0:00:07]} Bg7 {[%emt 0:00:06]} 6. O-O {[%emt 0:00:11]} O-O {[%emt 0:00:03]} 7. b3 {[%emt 0:01:18]} Bf5 {[%emt 0:03:21]} 8. Nbd2 {[%emt 0:00:24]} Ne4 {[%emt 0:03:18]} 9. Bb2 {[%emt 0:01:41]} Nxd2 {[%emt 0:05:57]} 10. Qxd2 {[%emt 0:02:48]} Be4 {[%emt 0:02:13]} 11. Rfd1 {[%emt 0:06:47]} Nd7 {[%emt 0:01:16]} 12. Rac1 {[%emt 0:03:52]} e6 {[%emt 0:04:41]} 13. e3 {[%emt 0:05:09]} Rc8 {[%emt 0:08:08]} 14. Qb4 {[%emt 0:03:20]} Qb6 {[%emt 0:05:29]} 15. Qxb6 {[%emt 0:04:10]} axb6 {[%emt 0:01:10]} 16. a4 {[%emt 0:09:14]} Rfd8 {[%emt 0:06:17]} 17. Nd2 {[%emt 0:03:44]} Bxg2 {[%emt 0:01:23]} 18. Kxg2 c5 19. Nf3 1/2-1/2

[Event "8. Arber-Schachopen 2019"]
[Site "Bodenmais"]
[Date "2019.07.29"]
[Round "3.20"]
[White "Jergler, Karl-Heinz"]
[Black "Uneken, Bert"]
[Result "1/2-1/2"]
[ECO "C17"]
[WhiteElo "2094"]
[BlackElo "1860"]
[Annotator "NA"]
[PlyCount "106"]
[EventDate "2019.07.27"]
[EventCountry "GER"]
[SourceTitle "playchess.com"]
[Source "ChessBase"]
[SourceQuality "1"]
[TimeControl "40/5400+30:1800+30"]

1. e4 {[%emt 0:00:00]} e6 {[%emt 0:00:00]} 2. d4 {[%emt 0:00:00]} d5 {[%emt 0:00:00]} 3. Nc3 {[%emt 0:00:00]} Bb4 {[%emt 0:00:37]} 4. e5 {[%emt 0:00:00]} c5 {[%emt 0:00:24]} 5. Bd2 {[%emt 0:02:23]} Bxc3 {[%emt 0:11:52]} 6. Bxc3 {[%emt 0:01:54]} Ne7 {[%emt 0:08:49]} 7. Nf3 {[%emt 0:03:16]} Nbc6 {[%emt 0:01:00]} 8. dxc5 {[%emt 0:02:32]} Nf5 {[%emt 0:06:35]} 9. Bb5 {[%emt 0:05:36]} Bd7 {[%emt 0:01:11]} 10. Bxc6 {[%emt 0:00:38]} Bxc6 {[%emt 0:00:32]} 11. O-O {[%emt 0:00:12]} d4 {[%emt 0:07:03]} 12. Nxd4 {[%emt 0:02:42]} Nxd4 {[%emt 0:01:07]} 13. Qxd4 {[%emt 0:06:50]} Qg5 {[%emt 0:02:45]} 14. f3 {[%emt 0:00:09]} h5 {[%emt 0:01:34]} 15. Rad1 {[%emt 0:04:52]} O-O {[%emt 0:05:18]} 16. Qf2 {[%emt 0:04:58]} Rad8 {[%emt 0:08:38]} 17. Rd6 {[%emt 0:02:30]} h4 {[%emt 0:04:12]} 18. Rfd1 {[%emt 0:09:15]} Bd5 {[%emt 0:00:48]} 19. Qd2 {[%emt 0:16:33]} Qg6 {[%emt 0:02:05]} 20. Qd3 {[%emt 0:03:26]} Qg5 {[%emt 0:00:54]} 21. Kf2 {[%emt 0:02:31]} Qf4 {[%emt 0:10:41]} 22. Rxd8 {[%emt 0:09:05]} Rxd8 {[%emt 0:00:21]} 23. Qe3 {[%emt 0:00:09]} Qxh2 {[%emt 0:04:33]} 24. Qg5 {[%emt 0:00:11]} Rc8 {[%emt 0:00:19]} 25. Bd4 {[%emt 0:05:07]} b6 {[%emt 0:02:38]} 26. b4 {[%emt 0:00:07]} bxc5 {[%emt 0:03:58]} 27. bxc5 {[%emt 0:01:38]} Bxa2 {[%emt 0:00:27]} 28. Be3 {[%emt 0:00:17]} h3 {[%emt 0:03:41]} 29. Rd8+ {[%emt 0:03:32]} Rxd8 {[%emt 0:00:11]} 30. Qxd8+ {[%emt 0:00:05]} Kh7 {[%emt 0:00:06]} 31. Qh4+ {[%emt 0:00:06]} Kg8 {[%emt 0:00:09]} 32. Qxh3 {[%emt 0:01:16]} Qxh3 {[%emt 0:01:09]} 33. gxh3 {[%emt 0:00:09]} Bd5 {[%emt 0:00:10]} 34. f4 {[%emt 0:00:20]} a5 {[%emt 0:01:13]} 35. Bd2 {[%emt 0:02:21]} a4 {[%emt 0:00:21]} 36. Bb4 {[%emt 0:00:14]} Bc6 {[%emt 0:00:28]} 37. Ke3 {[%emt 0:00:43]} Kf8 {[%emt 0:00:19]} 38. Kd4 {[%emt 0:00:10]} Ke7 {[%emt 0:00:14]} 39. Ba3 {[%emt 0:00:48]} Kd7 {[%emt 0:00:34]} 40. Kc4 {[%emt 0:01:53]} Be4 {[%emt 0:00:42]} 41. Kb5 {[%emt 0:34:44]} Bxc2 {[%emt 0:30:32]} 42. c6+ {[%emt 0:00:33]} Kc7 {[%emt 0:04:56]} 43. Bd6+ {[%emt 0:00:09]} Kc8 {[%emt 0:00:04]} 44. Kb6 {[%emt 0:00:05]} Be4 {[%emt 0:02:57]} 45. Bb4 {[%emt 0:01:01]} g6 {[%emt 0:01:38]} 46. Kc5 {[%emt 0:03:21]} Kc7 {[%emt 0:04:20]} 47. Ba5+ {[%emt 0:00:26]} Kc8 {[%emt 0:00:06]} 48. Kd6 {[%emt 0:02:05]} a3 {[%emt 0:00:25]} 49. Bc3 {[%emt 0:01:56]} a2 {[%emt 0:00:00]} 50. h4 {[%emt 0:00:00]} Bf5 {[%emt 0:00:00]} 51. Ba1 {[%emt 0:00:00]} Be4 {[%emt 0:00:00]} 52. c7 {[%emt 0:00:00]} Bf5 {[%emt 0:00:00]} 53. Bb2 {[%emt 0:00:00]} Be4 {[%emt 0:00:00]} 1/2-1/2

[Event "8. Arber-Schachopen 2019"]
[Site "Bodenmais"]
[Date "2019.07.29"]
[Round "3.21"]
[White "Kottmair, Toni"]
[Black "Albrecht, Manuel"]
[Result "1-0"]
[ECO "C54"]
[WhiteElo "2086"]
[BlackElo "1833"]
[Annotator "NA"]
[PlyCount "51"]
[EventDate "2019.07.27"]
[EventCountry "GER"]
[SourceTitle "playchess.com"]
[Source "ChessBase"]
[SourceQuality "1"]
[TimeControl "40/5400+30:1800+30"]

1. e4 {[%emt 0:00:00]} e5 {[%emt 0:00:00]} 2. Nf3 {[%emt 0:00:00]} Nc6 {[%emt 0:00:00]} 3. Bc4 {[%emt 0:00:00]} Bc5 {[%emt 0:00:00]} 4. c3 {[%emt 0:00:06]} Nf6 {[%emt 0:00:00]} 5. d3 {[%emt 0:00:23]} O-O {[%emt 0:00:00]} 6. b4 {[%emt 0:12:45]} Be7 {[%emt 0:04:02]} 7. Bg5 {[%emt 0:12:02]} d6 {[%emt 0:05:54]} 8. Nbd2 {[%emt 0:02:44]} h6 {[%emt 0:01:18]} 9. Bh4 {[%emt 0:09:42]} Kh8 {[%emt 0:16:06]} 10. Bxf6 {[%emt 0:10:15]} Bxf6 {[%emt 0:00:09]} 11. Nf1 {[%emt 0:00:07]} Be6 {[%emt 0:06:28]} 12. Ne3 {[%emt 0:03:06]} Ne7 {[%emt 0:04:21]} 13. Qb3 {[%emt 0:04:49]} Bxc4 {[%emt 0:05:56]} 14. dxc4 {[%emt 0:01:27]} b6 {[%emt 0:08:16]} 15. O-O {[%emt 0:00:38]} g6 {[%emt 0:10:52]} 16. Rad1 {[%emt 0:03:37]} c5 {[%emt 0:07:56]} 17. Ng4 {[%emt 0:08:50]} Bg7 {[%emt 0:04:09]} 18. Ngxe5 {[%emt 0:01:30]} f5 {[%emt 0:00:24]} 19. Rfe1 {[%emt 0:03:37]} Qc7 {[%emt 0:03:13]} 20. Nd3 {[%emt 0:00:34]} cxb4 {[%emt 0:01:15]} 21. cxb4 {[%emt 0:04:04]} fxe4 {[%emt 0:02:33]} 22. Rxe4 {[%emt 0:00:09]} Nc6 {[%emt 0:00:56]} 23. Nf4 {[%emt 0:02:41]} d5 {[%emt 0:02:38]} 24. Nxg6+ {[%emt 0:01:26]} Kg8 {[%emt 0:00:08]} 25. cxd5 {[%emt 0:00:40]} Rxf3 {[%emt 0:00:43]} 26. Qxf3 {[%emt 0:00:53]} 1-0

[Event "8. Arber-Schachopen 2019"]
[Site "Bodenmais"]
[Date "2019.07.29"]
[Round "3.22"]
[White "Schreib, Marc"]
[Black "Schwenkreis, Thomas"]
[Result "0-1"]
[ECO "A46"]
[WhiteElo "1839"]
[BlackElo "2048"]
[Annotator "NA"]
[PlyCount "66"]
[EventDate "2019.07.27"]
[EventCountry "GER"]
[SourceTitle "playchess.com"]
[Source "ChessBase"]
[SourceQuality "1"]
[TimeControl "40/5400+30:1800+30"]

1. d4 {[%emt 0:00:00]} Nf6 {[%emt 0:00:00]} 2. Nf3 {[%emt 0:00:00]} d6 {[%emt 0:00:00]} 3. Bg5 {[%emt 0:01:03]} Nbd7 {[%emt 0:00:00]} 4. Nbd2 {[%emt 0:01:13]} h6 {[%emt 0:00:08]} 5. Bh4 {[%emt 0:01:49]} g5 {[%emt 0:00:35]} 6. Bg3 {[%emt 0:00:18]} Nh5 {[%emt 0:00:10]} 7. e4 {[%emt 0:01:42]} Nxg3 {[%emt 0:00:07]} 8. hxg3 {[%emt 0:00:07]} Bg7 {[%emt 0:00:08]} 9. c3 {[%emt 0:00:17]} c5 {[%emt 0:00:41]} 10. dxc5 {[%emt 0:03:33]} Nxc5 {[%emt 0:00:11]} 11. Bb5+ {[%emt 0:00:18]} Bd7 {[%emt 0:00:07]} 12. Bxd7+ {[%emt 0:01:41]} Qxd7 {[%emt 0:00:02]} 13. Qe2 {[%emt 0:01:01]} a5 {[%emt 0:01:26]} 14. Nd4 {[%emt 0:01:49]} e6 {[%emt 0:00:48]} 15. Qb5 {[%emt 0:03:01]} a4 {[%emt 0:03:22]} 16. Ke2 {[%emt 0:09:40]} O-O {[%emt 0:04:04]} 17. Qxd7 {[%emt 0:00:09]} Nxd7 18. a3 {[%emt 0:06:33]} Nc5 {[%emt 0:01:19]} 19. g4 {[%emt 0:01:52]} Rfd8 {[%emt 0:02:11]} 20. Rhd1 {[%emt 0:02:40]} d5 {[%emt 0:00:31]} 21. Ke3 {[%emt 0:03:02]} Ra6 {[%emt 0:03:30]} 22. exd5 {[%emt 0:08:43]} Rxd5 {[%emt 0:00:01]} 23. N2f3 {[%emt 0:01:24]} Rad6 {[%emt 0:06:13]} 24. c4 {[%emt 0:06:09]} Bxd4+ {[%emt 0:02:01]} 25. Rxd4 {[%emt 0:00:26]} Rxd4 {[%emt 0:00:15]} 26. Nxd4 {[%emt 0:00:20]} Kg7 {[%emt 0:13:55]} 27. Rd1 {[%emt 0:01:38]} Kg6 {[%emt 0:00:59]} 28. Rd2 {[%emt 0:00:45]} f5 {[%emt 0:01:21]} 29. gxf5+ {[%emt 0:00:53]} exf5 {[%emt 0:00:01]} 30. f4 {[%emt 0:06:27]} Rd7 {[%emt 0:04:20]} 31. g3 {[%emt 0:07:29]} g4 {[%emt 0:03:50]} 32. Rg2 {[%emt 0:03:24]} h5 {[%emt 0:01:44]} 33. Rh2 {[%emt 0:02:08]} Re7+ {[%emt 0:00:48]} 0-1

[Event "8. Arber-Schachopen 2019"]
[Site "Bodenmais"]
[Date "2019.07.29"]
[Round "3.23"]
[White "Titz, Heimo"]
[Black "Navarro Gevers, Daniel"]
[Result "0-1"]
[ECO "A35"]
[WhiteElo "2048"]
[BlackElo "1813"]
[Annotator "NA"]
[PlyCount "102"]
[EventDate "2019.07.27"]
[EventCountry "GER"]
[SourceTitle "playchess.com"]
[Source "ChessBase"]
[SourceQuality "1"]
[TimeControl "40/5400+30:1800+30"]

1. c4 {[%emt 0:00:00]} c5 {[%emt 0:00:00]} 2. Nc3 {[%emt 0:01:12]} Nc6 {[%emt 0:01:15]} 3. Nf3 {[%emt 0:00:47]} g6 {[%emt 0:03:19]} 4. e3 {[%emt 0:00:57]} e6 {[%emt 0:05:38]} 5. d4 {[%emt 0:01:05]} cxd4 {[%emt 0:00:52]} 6. exd4 {[%emt 0:00:13]} d5 {[%emt 0:03:08]} 7. c5 {[%emt 0:09:50]} a6 {[%emt 0:04:13]} 8. Be2 {[%emt 0:06:42]} Bg7 {[%emt 0:03:43]} 9. Na4 {[%emt 0:07:54]} Nge7 {[%emt 0:03:17]} 10. Nb6 {[%emt 0:01:00]} Ra7 {[%emt 0:02:33]} 11. b3 {[%emt 0:08:52]} O-O {[%emt 0:03:15]} 12. O-O {[%emt 0:04:55]} Nf5 {[%emt 0:13:54]} 13. Bb2 {[%emt 0:00:46]} Qf6 {[%emt 0:03:38]} 14. Ne5 {[%emt 0:06:58]} Rd8 {[%emt 0:07:24]} 15. f4 {[%emt 0:08:59]} Ne3 {[%emt 0:00:34]} 16. Qd3 {[%emt 0:00:15]} Nxf1 {[%emt 0:00:22]} 17. Rxf1 {[%emt 0:00:06]} Qe7 {[%emt 0:03:31]} 18. Bc1 {[%emt 0:20:38]} Nxe5 {[%emt 0:12:35]} 19. fxe5 {[%emt 0:01:14]} Bd7 {[%emt 0:01:20]} 20. Qe3 {[%emt 0:03:39]} Bb5 {[%emt 0:01:00]} 21. a4 {[%emt 0:00:20]} Bxe2 {[%emt 0:00:37]} 22. Qxe2 {[%emt 0:00:02]} a5 {[%emt 0:01:03]} 23. Bd2 {[%emt 0:02:37]} f6 {[%emt 0:00:12]} 24. Bf4 {[%emt 0:01:08]} Rf8 {[%emt 0:06:24]} 25. exf6 {[%emt 0:00:53]} Qxf6 {[%emt 0:02:21]} 26. Be3 {[%emt 0:04:09]} Qxf1+ {[%emt 0:00:33]} 27. Qxf1 {[%emt 0:00:02]} Rxf1+ {[%emt 0:00:09]} 28. Kxf1 {[%emt 0:00:15]} Bf6 {[%emt 0:00:51]} 29. Ke2 {[%emt 0:01:28]} Ra6 {[%emt 0:02:15]} 30. Kd3 {[%emt 0:01:59]} Kf7 {[%emt 0:00:45]} 31. Bd2 {[%emt 0:00:37]} Ke8 {[%emt 0:01:05]} 32. b4 {[%emt 0:00:38]} axb4 {[%emt 0:00:25]} 33. Bxb4 {[%emt 0:00:13]} Bd8 {[%emt 0:00:19]} 34. a5 {[%emt 0:01:21]} Bxb6 {[%emt 0:00:18]} 35. cxb6 {[%emt 0:00:11]} Kd7 {[%emt 0:00:33]} 36. Ke3 {[%emt 0:01:49]} Kc6 {[%emt 0:01:14]} 37. Kf4 {[%emt 0:00:20]} Kb5 {[%emt 0:00:31]} 38. Bd2 {[%emt 0:00:32]} Rxa5 {[%emt 0:00:23]} 39. Bxa5 {[%emt 0:01:45]} Kxa5 {[%emt 0:00:02]} 40. Ke5 {[%emt 0:00:40]} Kxb6 {[%emt 0:00:03]} 41. g4 {[%emt 0:30:42]} Kc6 {[%emt 0:30:14]} 42. g5 {[%emt 0:01:00]} b5 {[%emt 0:00:19]} 43. Kf6 {[%emt 0:00:07]} b4 {[%emt 0:00:21]} 44. Kg7 {[%emt 0:00:59]} b3 {[%emt 0:00:05]} 45. Kxh7 {[%emt 0:00:11]} b2 {[%emt 0:00:06]} 46. Kxg6 {[%emt 0:00:41]} b1=Q+ {[%emt 0:00:08]} 47. Kg7 {[%emt 0:00:18]} Qg1 {[%emt 0:00:42]} 48. g6 {[%emt 0:00:22]} Qxd4+ {[%emt 0:00:27]} 49. Kf7 {[%emt 0:00:35]} Kd6 {[%emt 0:01:06]} 50. g7 {[%emt 0:00:37]} Qf4+ {[%emt 0:00:08]} 51. Kg6 {[%emt 0:00:41]} Qxh2 {[%emt 0:00:05]} 0-1

[Event "8. Arber-Schachopen 2019"]
[Site "Bodenmais"]
[Date "2019.07.29"]
[Round "3.24"]
[White "Simacek, Vaclav"]
[Black "Neiss, Josef Martin"]
[Result "1/2-1/2"]
[ECO "B15"]
[WhiteElo "1809"]
[BlackElo "2041"]
[Annotator "NA"]
[PlyCount "93"]
[EventDate "2019.07.27"]
[EventCountry "GER"]
[SourceTitle "playchess.com"]
[Source "ChessBase"]
[SourceQuality "1"]
[TimeControl "40/5400+30:1800+30"]

1. e4 {[%emt 0:00:00]} c6 {[%emt 0:03:45]} 2. d4 {[%emt 0:00:38]} d5 {[%emt 0:00:02]} 3. Nc3 {[%emt 0:00:44]} dxe4 {[%emt 0:00:23]} 4. Nxe4 {[%emt 0:00:20]} Nf6 {[%emt 0:00:20]} 5. Nxf6+ {[%emt 0:03:43]} exf6 {[%emt 0:00:03]} 6. Nf3 {[%emt 0:01:12]} Bd6 {[%emt 0:00:34]} 7. Bd3 {[%emt 0:00:20]} O-O {[%emt 0:01:02]} 8. O-O {[%emt 0:00:11]} Bg4 {[%emt 0:02:19]} 9. h3 {[%emt 0:02:42]} Bh5 {[%emt 0:00:35]} 10. Bf5 {[%emt 0:09:11]} Nd7 {[%emt 0:04:38]} 11. Qd3 {[%emt 0:02:16]} Bg6 {[%emt 0:02:00]} 12. Nh4 {[%emt 0:01:16]} Qc7 {[%emt 0:02:32]} 13. c4 {[%emt 0:02:05]} Rad8 {[%emt 0:01:21]} 14. Qf3 {[%emt 0:03:15]} c5 {[%emt 0:03:13]} 15. Nxg6 {[%emt 0:15:21]} hxg6 {[%emt 0:00:14]} 16. Bxd7 {[%emt 0:00:18]} Qxd7 {[%emt 0:04:02]} 17. d5 {[%emt 0:02:42]} Rfe8 {[%emt 0:04:38]} 18. Be3 {[%emt 0:02:48]} f5 {[%emt 0:01:11]} 19. b3 {[%emt 0:07:02]} Re4 {[%emt 0:01:30]} 20. Rae1 {[%emt 0:00:10]} Rde8 {[%emt 0:02:20]} 21. Bd2 {[%emt 0:00:30]} Qe7 {[%emt 0:06:06]} 22. g3 {[%emt 0:01:24]} Qf6 {[%emt 0:08:42]} 23. Bc3 {[%emt 0:06:07]} Qg5 {[%emt 0:02:29]} 24. h4 {[%emt 0:04:45]} Qd8 {[%emt 0:07:23]} 25. Rxe4 {[%emt 0:01:15]} Rxe4 {[%emt 0:02:54]} 26. Re1 {[%emt 0:02:12]} Rxe1+ {[%emt 0:01:46]} 27. Bxe1 {[%emt 0:00:22]} f4 {[%emt 0:00:18]} 28. Bc3 {[%emt 0:03:20]} fxg3 {[%emt 0:05:23]} 29. fxg3 {[%emt 0:00:10]} Qd7 {[%emt 0:01:41]} 30. Kg2 {[%emt 0:00:31]} b5 {[%emt 0:02:45]} 31. cxb5 {[%emt 0:06:36]} Qxb5 {[%emt 0:01:10]} 32. Be1 {[%emt 0:01:14]} c4 {[%emt 0:05:46]} 33. Bf2 {[%emt 0:09:12]} a5 {[%emt 0:01:37]} 34. bxc4 {[%emt 0:02:36]} Qxc4 {[%emt 0:00:36]} 35. Qb3 {[%emt 0:03:52]} Qe4+ {[%emt 0:01:44]} 36. Qf3 {[%emt 0:00:14]} Qc2 {[%emt 0:02:49]} 37. Qb3 {[%emt 0:02:02]} Qd2 {[%emt 0:01:02]} 38. Kf3 {[%emt 0:01:17]} a4 {[%emt 0:06:52]} 39. Qxa4 {[%emt 0:03:55]} Qxd5+ {[%emt 0:00:12]} 40. Ke2 {[%emt 0:00:59]} g5 {[%emt 0:06:20]} 41. hxg5 {[%emt 0:01:18]} Qxg5 {[%emt 0:00:18]} 42. Qe8+ {[%emt 0:02:37]} Bf8 {[%emt 0:04:06]} 43. a4 {[%emt 0:00:25]} Qd5 {[%emt 0:00:41]} 44. Qb5 {[%emt 0:01:27]} Qe4+ {[%emt 0:01:13]} 45. Kf1 {[%emt 0:01:22]} Qh1+ {[%emt 0:01:06]} 46. Ke2 {[%emt 0:00:18]} Qe4+ {[%emt 0:00:11]} 47. Kd1 1/2-1/2